fUST/lending_fUST_20250701
["ID","MTS","AMOUNT","RATE_DAILY","PERIOD"]
[368733689,1751334656322,-500.0,0.00021,2]
[368733690,1751334656332,-223.0315306,0.00021012,2]
[368733691,1751334656342,-920.78,0.00021021,2]
[368733692,1751334656352,-717.39,0.00021021,2]
[368733693,1751334656362,-1641.85,0.00021022,2]
[368733694,1751334656371,-1646.18,0.00021022,2]
[368733695,1751334656381,-1385.16,0.00021022,2]
[368733696,1751334656391,-2055.78,0.00021022,2]
[368733697,1751334656400,-510.77,0.00021022,2]
[368733698,1751334656410,-865.56,0.00021022,2]
[368733699,1751334656420,-382.67219086,0.00021023,2]
[368733700,1751334656430,-177.98960313,0.00021023,2]
[368733701,1751334656440,-460.0,0.00021023,2]
[368733702,1751334656449,-460.0,0.00021023,2]
[368733703,1751334656458,-1452.89,0.00021023,2]
[368733704,1751334656468,-460.0,0.00021023,2]
[368733705,1751334656478,-580.54897763,0.00021023,2]
[368733706,1751334656489,-2680.89,0.00021023,2]
[368733707,1751334656499,-594.27,0.00021023,2]
[368733708,1751334656509,-528.77,0.00021023,2]
[368733709,1751334656519,-630.97,0.00021023,2]
[368733710,1751334656529,-782.43,0.00021023,2]
[368733711,1751334656539,-460.0,0.00021113,2]
[368733712,1751334656549,-460.0,0.00021123,2]
[368733713,1751334656559,-460.0,0.00021123,2]
[368733714,1751334656569,-239.73220767,0.00021123,2]
[368733715,1751334656578,-1391.17,0.00021123,2]
[368733716,1751334656588,-460.0,0.00021123,2]
[368733717,1751334656598,-1207.15,0.00021123,2]
[368733718,1751334656607,-269.47931376,0.00021123,2]
[368733719,1751334656617,-2516.07,0.00021123,2]
[368733720,1751334656626,-905.63,0.00021123,2]
[368733721,1751334656636,-154.6874746,0.00021178,2]
[368733722,1751334656646,-167.5,0.00021231,4]
[368733723,1751334656655,-161.5299746,0.00021288,2]
[368733724,1751334656666,-583.5656188,0.00021288,2]
[368733725,1751334656676,-920.78,0.00021295,2]
[368733726,1751334656686,-717.39,0.00021295,2]
[368733727,1751334656695,-1641.85,0.00021296,2]
[368733728,1751334656705,-1646.18,0.00021296,2]
[368733729,1751334656715,-1385.16,0.00021296,2]
[368733730,1751334656725,-2055.78,0.00021296,2]
[368733731,1751334656735,-510.77,0.00021296,2]
[368733732,1751334656745,-865.56,0.00021296,2]
[368733733,1751334656755,-460.0,0.00021297,2]
[368733734,1751334656764,-460.0,0.00021297,2]
[368733735,1751334656775,-1452.89,0.00021297,2]
[368733736,1751334656784,-460.0,0.00021297,2]
[368733737,1751334656794,-2680.89,0.00021297,2]
[368733738,1751334656804,-594.27,0.00021297,2]
[368733739,1751334656814,-528.77,0.00021297,2]
[368733740,1751334656823,-630.97,0.00021297,2]
[368733741,1751334656833,-782.43,0.00021297,2]
[368733742,1751334656842,-151.0,0.000213,4]
[368733743,1751334656852,-620.55847114,0.00021333,2]
[368733744,1751334656861,-160.0,0.00021377,3]
[368733745,1751334656875,-460.0,0.00021387,2]
[368733746,1751334656884,-460.0,0.00021397,2]
[368733747,1751334656895,-460.0,0.00021397,2]
[368733748,1751334656905,-1391.17,0.00021397,2]
[368733749,1751334656914,-460.0,0.00021397,2]
[368733750,1751334656925,-1207.15,0.00021397,2]
[368733751,1751334656934,-2516.07,0.00021397,2]
[368733752,1751334656944,-905.63,0.00021397,2]
[368733753,1751334656954,-12500.0,0.00021405,2]
[368733754,1751334656964,-501.0,0.00021465,2]
[368733755,1751334656973,-968.222,0.00021487,2]
[368733756,1751334656983,-671.531,0.00021487,2]
[368733757,1751334656993,-2151.0,0.00021487,2]
[368733758,1751334657002,-501.0,0.00021503,2]
[368733759,1751334657012,-167.5,0.00021538,5]
[368733760,1751334657021,-1239.400054,0.0002156,4]
[368733761,1751334657030,-920.78,0.00021569,2]
[368733762,1751334657039,-717.39,0.00021569,2]
[368733763,1751334657048,-1641.85,0.0002157,2]
[368733764,1751334657058,-1646.18,0.0002157,2]
[368733765,1751334657067,-1385.16,0.0002157,2]
[368733766,1751334657077,-2055.78,0.0002157,2]
[368733767,1751334657086,-510.77,0.0002157,2]
[368733768,1751334657096,-865.56,0.0002157,2]
[368733769,1751334657106,-460.0,0.00021571,2]
[368733770,1751334657116,-237.38421918,0.00021571,2]
[368733771,1751334657126,-1452.89,0.00021571,2]
[368733772,1751334657136,-460.0,0.00021571,2]
[368733773,1751334657145,-2680.89,0.00021571,2]
[368733774,1751334657155,-594.27,0.00021571,2]
[368733775,1751334657164,-528.77,0.00021571,2]
[368733776,1751334657177,-630.97,0.00021571,2]
[368733777,1751334657186,-782.43,0.00021571,2]
[368733778,1751334657195,-501.0,0.00021591,2]
[368733779,1751334657205,-151.0,0.000216,4]
[368733780,1751334657215,-4310.11655131,0.00021644,2]
[368733781,1751334657226,-249.28078526,0.00021661,2]
[368733782,1751334657236,-499.81,0.00021671,2]
[368733783,1751334657248,-460.0,0.00021671,2]
[368733784,1751334657258,-1391.17,0.00021671,2]
[368733785,1751334657267,-460.0,0.00021671,2]
[368733786,1751334657277,-1207.15,0.00021671,2]
[368733787,1751334657287,-2516.07,0.00021671,2]
[368733788,1751334657298,-905.63,0.00021671,2]
[368733789,1751334657307,-180.1531446,0.00021671,2]
[368733790,1751334657317,-159.266168,0.00021671,2]
[368733791,1751334657327,-575.5050994,0.00021671,2]
[368733792,1751334657337,-575.5050994,0.00021671,2]
[368733793,1751334657347,-275.0207493,0.00021671,2]
[368733794,1751334657356,-3503.41,0.000218,2]
[368733795,1751334657366,-920.78,0.00021843,2]
[368733796,1751334657376,-717.39,0.00021843,2]
[368733797,1751334657386,-1641.85,0.00021844,2]
[368733798,1751334657395,-1646.18,0.00021844,2]
[368733799,1751334657405,-1385.16,0.00021844,2]
[368733800,1751334657417,-2055.78,0.00021844,2]
[368733801,1751334657427,-510.77,0.00021844,2]
[368733802,1751334657437,-865.56,0.00021844,2]
[368733803,1751334657447,-460.0,0.00021845,2]
[368733804,1751334657457,-1452.89,0.00021845,2]
[368733805,1751334657466,-460.0,0.00021845,2]
[368733806,1751334657476,-2680.89,0.00021845,2]
[368733807,1751334657485,-594.27,0.00021845,2]
[368733808,1751334657494,-528.77,0.00021845,2]
[368733809,1751334657503,-630.97,0.00021845,2]
[368733810,1751334657513,-782.43,0.00021845,2]
[368733811,1751334657523,-167.5,0.00021846,5]
[368733812,1751334657533,-4428.34997892,0.0002189,2]
[368733813,1751334657543,-460.0,0.00021917,2]
[368733814,1751334657553,-460.0,0.00021917,2]
[368733815,1751334657563,-460.0,0.00021917,2]
[368733816,1751334657572,-503.07669286,0.00021917,2]
[368733817,1751334657583,-500.0,0.00021917,2]
[368733818,1751334657593,-500.0,0.00021917,2]
[368733819,1751334657603,-500.0,0.00021917,2]
[368733820,1751334657612,-500.0,0.00021917,2]
[368733821,1751334657622,-500.0,0.00021917,2]
[368733822,1751334657633,-500.0,0.00021917,2]
[368733823,1751334657643,-500.0,0.00021917,2]
[368733824,1751334657654,-500.0,0.00021917,2]
[368733825,1751334657665,-500.0,0.00021917,2]
[368733826,1751334657676,-500.0,0.00021917,2]
[368733827,1751334657685,-500.0,0.00021917,2]
[368733828,1751334657695,-500.0,0.00021917,2]
[368733829,1751334657704,-500.0,0.00021917,2]
[368733830,1751334657714,-501.23180368,0.00021917,2]
[368733831,1751334657723,-481.89258307,0.00021918,7]
[368733832,1751334657733,-1142.76109378,0.00021918,2]
[368733833,1751334657743,-460.0,0.00021945,2]
[368733834,1751334657753,-500.0,0.00021945,2]
[368733835,1751334657762,-1391.17,0.00021945,2]
[368733836,1751334657772,-460.0,0.00021945,2]
[368733837,1751334657782,-1207.15,0.00021945,2]
[368733838,1751334657792,-2516.07,0.00021945,2]
[368733839,1751334657802,-905.63,0.00021945,2]
[368733840,1751334657812,-307.518305,0.00021945,2]
[368733841,1751334657821,-500.62288182,0.00021973,2]
[368733842,1751334657833,-500.0,0.00021973,2]
[368733843,1751334657842,-500.0,0.00021973,2]
[368733844,1751334657852,-500.24394531,0.00021973,2]
[368733845,1751334657863,-502.01459024,0.00021973,2]
[368733846,1751334657873,-508.61185846,0.00021973,2]
[368733847,1751334657884,-500.0,0.00021973,2]
[368733848,1751334657893,-500.0,0.00021973,2]
[368733849,1751334657903,-500.0,0.00021973,2]
[368733850,1751334657914,-500.58730303,0.00021973,2]
[368733851,1751334657924,-500.8017279,0.00021973,2]
[368733852,1751334657934,-500.0,0.00021973,2]
[368733853,1751334657944,-311.99271156,0.00021973,2]
[368733854,1751334657955,-500.0,0.00021973,2]
[368733855,1751334657965,-500.0,0.00021973,2]
[368733856,1751334657975,-500.0,0.00021973,2]
[368733857,1751334657985,-500.0,0.00021973,2]
[368733858,1751334657995,-500.0,0.00021973,2]
[368733859,1751334658006,-500.81283799,0.00021973,2]
[368733860,1751334658015,-500.0,0.00021973,2]
[368733861,1751334658025,-552.96391721,0.00021973,2]
[368733862,1751334658035,-500.32963069,0.00021973,2]
[368733863,1751334658045,-500.0,0.00021973,2]
[368733864,1751334658055,-500.0,0.00021973,2]
[368733865,1751334658066,-500.23124934,0.00021973,2]
[368733866,1751334658076,-521.35283505,0.00021973,2]
[368733867,1751334658086,-500.41301451,0.00021973,2]
[368733868,1751334658096,-500.0,0.00021973,2]
[368733869,1751334658106,-500.0,0.00021973,2]
[368733870,1751334658117,-600.0,0.00021973,2]
[368733871,1751334658127,-500.0,0.00021973,2]
[368733872,1751334658221,-602.50710945,0.00021973,2]
[368733873,1751334658247,-500.0,0.00021973,2]
[368733874,1751334658256,-500.0,0.00021973,2]
[368733875,1751334658267,-500.0,0.00021973,2]
[368733876,1751334658277,-500.0,0.00021973,2]
[368733877,1751334658286,-500.0,0.00021973,2]
[368733878,1751334658296,-500.0,0.00021973,2]
[368733879,1751334658307,-500.0,0.00021973,2]
[368733880,1751334658317,-500.0,0.00021973,2]
[368733881,1751334658326,-501.0,0.00021984,2]
[368733882,1751334658337,-11343.39428206,0.0002199,2]
[368733883,1751334658347,-3698.78911306,0.0002199,2]
[368733884,1751334658357,-61124.81467613,0.0002199,15]
[368733885,1751334658459,-453.67243545,0.0002199,15]
[368733886,1751334658669,-460.0,0.0001828,2]
[368733887,1751334658678,-460.0,0.00018281,2]
[368733888,1751334658688,-461.48266873,0.00018281,2]
[368733889,1751334658697,-460.0,0.00018281,2]
[368733890,1751334658707,-460.0,0.00018281,2]
[368733891,1751334658717,-460.0,0.00018555,2]
[368733892,1751334658728,-460.0,0.00018555,2]
[368733893,1751334658737,-460.0,0.00018829,2]
[368733894,1751334658747,-460.0,0.00019103,2]
[368733895,1751334658757,-460.0,0.00019377,2]
[368733896,1751334658767,-460.0,0.00019651,2]
[368733897,1751334658777,-460.0,0.00019925,2]
[368733898,1751334658787,-460.0,0.00020199,2]
[368733899,1751334658799,-460.0,0.00020473,2]
[368733900,1751334658809,-250.18528736,0.00020747,2]
[368733901,1751334658820,-7023.94204391,0.0002199,15]
[368733902,1751334658832,-488.44838508,0.0002199,15]
[368733903,1751334658843,-270.9325,0.0002199,15]
[368733904,1751334658855,-504.3,0.0002199,15]
[368733905,1751334658869,-2929.14384502,0.0002199,15]
[368733906,1751334658883,-920.0,0.0002199,15]
[368733907,1751334659116,-460.0,0.0001828,2]
[368733908,1751334659127,-326.09871747,0.00018281,2]
[368733909,1751334659138,-1.40128253,0.00018282,2]
[368733910,1751334659155,-458.59871747,0.00018282,2]
[368733911,1751334659165,-478.67871519,0.00018283,2]
[368733912,1751334659174,-461.86906279,0.00018554,2]
[368733913,1751334659184,-460.0,0.00018556,2]
[368733914,1751334659195,-460.0,0.00018829,2]
[368733915,1751334659204,-460.0,0.0001883,2]
[368733916,1751334659214,-173.3128734,0.00019103,2]
[368733917,1751334659226,-286.6871266,0.00019103,2]
[368733918,1751334659236,-64.90382111,0.00019104,2]
[368733919,1751334659247,-395.09617889,0.00019104,2]
[368733920,1751334659257,-460.0,0.00019378,2]
[368733921,1751334659267,-460.0,0.00019652,2]
[368733922,1751334659277,-2836.46614109,0.000199,2]
[368733923,1751334659287,-536000.3819079,0.0002199,15]
[368733924,1751334659298,-807.18846441,0.0002199,15]
[368733925,1751334659310,-32244.78467495,0.0002199,15]
[368733926,1751334680557,187.42905245,0.00016438,3]
[368733934,1751334876132,7000.0,0.00024962,60]
[368733947,1751335088376,151.0,0.000176,2]
[368733948,1751335088859,151.0,0.000165,2]
[368733949,1751335089164,151.0,0.000154,2]
[368733950,1751335089449,151.0,0.000143,2]
[368733951,1751335089857,151.0,0.000132,2]
[368733952,1751335090014,151.0,0.000121,2]
[368733956,1751335290893,-271.9431591,0.00018081,2]
[368733957,1751335293883,-246.91886229,0.00018081,2]
[368733958,1751335302588,-197.99027078,0.00018081,2]
[368733959,1751335304199,-241.16769078,0.00018081,2]
[368733961,1751335308967,-186.77937167,0.00018081,2]
[368733962,1751335312669,3800.0,0.00024971,120]
[368733965,1751335470893,8600.44,0.00024948,60]
[368733966,1751335519077,21.91140614,0.00024657,120]
[368733967,1751335519099,854.24429729,0.00024657,120]
[368733968,1751335519125,324.22666064,0.00024657,120]
[368733969,1751335525939,-242.41256971,0.00018078,2]
[368733970,1751335584186,-411.79743029,0.0001808,2]
[368733971,1751335589675,-589.6,0.0001808,2]
[368733972,1751335596910,-104.43750462,0.0001808,2]
[368733973,1751335636092,-163.75489393,0.00018129,2]
[368733974,1751335636114,-300.0,0.00018178,2]
[368733975,1751335636137,-300.0,0.00018178,2]
[368733976,1751335636158,-1365.96946567,0.00018179,2]
[368733978,1751335661646,345.432116,0.00013699,2]
[368733979,1751335673461,290.0055079,0.00017181,2]
[368733981,1751335692440,160.0,0.00018,2]
[368733982,1751335693421,160.0,0.00018,2]
[368733987,1751335771146,-300.0,0.00018178,2]
[368733988,1751335771168,-461.22164206,0.00018179,3]
[368733989,1751335771205,-1163.345808,0.00018179,2]
[368733990,1751335802958,277.35150716,0.00024649,120]
[368733993,1751335831996,-154.19497099,0.00018178,2]
[368733994,1751335832006,-267.00502901,0.00018178,2]
[368733995,1751335832018,-32.99497099,0.00018178,2]
[368733996,1751335832028,-460.0,0.00018178,2]
[368733997,1751335832038,-300.0,0.00018178,2]
[368733998,1751335832048,-460.0,0.00018178,2]
[368733999,1751335832059,-156.66711416,0.00018178,2]
[368734000,1751335832068,-6762.70226302,0.00018179,2]
[368734001,1751335832078,-460.0,0.00018179,2]
[368734002,1751335832088,-460.0,0.00018179,2]
[368734003,1751335832098,-476.84,0.00018179,2]
[368734004,1751335832109,-479.56126201,0.00018179,2]
[368734005,1751335832119,-593.32,0.00018179,2]
[368734006,1751335832129,-460.0,0.00018179,2]
[368734008,1751335832140,-460.0,0.00018179,2]
[368734009,1751335832149,-460.0,0.00018179,2]
[368734010,1751335832159,-460.0,0.00018179,2]
[368734011,1751335832169,-460.0,0.00018179,2]
[368734012,1751335832178,-460.0,0.00018179,2]
[368734013,1751335832188,-557.2,0.00018179,2]
[368734015,1751335832198,-460.0,0.00018179,2]
[368734017,1751335832208,-460.0,0.00018179,2]
[368734019,1751335832217,-460.0,0.00018179,2]
[368734020,1751335832228,-1386.43,0.00018179,2]
[368734022,1751335832238,-460.0,0.00018179,2]
[368734023,1751335832247,-460.0,0.00018179,2]
[368734025,1751335832257,-572.43997282,0.00018179,2]
[368734027,1751335832267,-460.0,0.00018179,2]
[368734028,1751335832276,-1650.13,0.00018179,2]
[368734029,1751335832286,-460.0,0.00018179,2]
[368734031,1751335832296,-464.51871191,0.00018179,2]
[368734032,1751335832307,-1435.85,0.00018179,2]
[368734034,1751335832317,-1943.98,0.00018179,2]
[368734035,1751335832327,-460.0,0.00018179,2]
[368734037,1751335832337,-460.0,0.00018179,2]
[368734038,1751335832347,-460.0,0.00018179,2]
[368734040,1751335832357,-460.0,0.00018179,2]
[368734041,1751335832367,-460.0,0.00018179,2]
[368734043,1751335832377,-460.0,0.00018179,2]
[368734045,1751335832387,-717.33,0.00018179,2]
[368734046,1751335832396,-460.0,0.00018179,2]
[368734048,1751335832406,-460.0,0.00018179,2]
[368734049,1751335832415,-1079.47,0.00018179,2]
[368734051,1751335832424,-460.0,0.00018179,2]
[368734052,1751335832434,-460.0,0.00018179,2]
[368734054,1751335832444,-460.0,0.00018179,2]
[368734056,1751335832453,-460.0,0.00018179,2]
[368734057,1751335832463,-721.37,0.00018179,2]
[368734059,1751335832473,-460.0,0.00018179,2]
[368734060,1751335832482,-460.0,0.00018179,2]
[368734062,1751335832492,-460.0,0.00018179,2]
[368734064,1751335832503,-460.0,0.00018179,2]
[368734065,1751335832513,-198.42161831,0.00018179,2]
[368734067,1751335832531,-1346.39,0.00018179,2]
[368734069,1751335832541,-251.86217672,0.0001818,2]
[368734071,1751335832551,-460.0,0.0001818,2]
[368734072,1751335832560,-460.0,0.0001818,2]
[368734074,1751335832571,-460.0,0.0001818,2]
[368734076,1751335832581,-460.0,0.0001818,2]
[368734077,1751335832591,-460.0,0.0001818,2]
[368734079,1751335832602,-460.0,0.0001818,2]
[368734081,1751335832612,-460.0,0.0001818,2]
[368734082,1751335832622,-460.0,0.0001818,2]
[368734084,1751335832631,-460.0,0.0001818,2]
[368734085,1751335832640,-463.17023637,0.0001818,2]
[368734088,1751335832656,-460.0,0.0001818,2]
[368734091,1751335832666,-462.8880918,0.0001818,2]
[368734093,1751335832675,-462.58130669,0.0001818,2]
[368734094,1751335832685,-460.0,0.0001818,2]
[368734096,1751335832695,-204.07262208,0.0001818,2]
[368734097,1751335832705,-318.71652664,0.0001818,2]
[368734099,1751335832715,-460.0,0.0001818,2]
[368734101,1751335832725,-460.0,0.0001818,2]
[368734103,1751335832735,-460.56667429,0.0001818,2]
[368734104,1751335832746,-152.92085755,0.0001818,2]
[368734106,1751335832757,-488.21,0.0001818,2]
[368734108,1751335832767,-496.75,0.0001818,2]
[368734109,1751335832777,-460.0,0.0001818,2]
[368734111,1751335832786,-460.0,0.0001818,2]
[368734113,1751335832796,-460.0,0.0001818,2]
[368734114,1751335832806,-460.0,0.0001818,2]
[368734116,1751335832816,-460.0,0.0001818,2]
[368734118,1751335832826,-460.0,0.0001818,2]
[368734119,1751335832835,-460.0,0.0001818,2]
[368734121,1751335832845,-460.0,0.0001818,2]
[368734123,1751335832856,-460.0,0.0001818,2]
[368734125,1751335832866,-461.66257384,0.0001818,2]
[368734126,1751335832876,-460.0,0.0001818,2]
[368734128,1751335832886,-460.0,0.0001818,2]
[368734130,1751335832896,-1385.95,0.0001818,2]
[368734131,1751335832906,-608.25,0.0001818,2]
[368734133,1751335832916,-460.0,0.0001818,2]
[368734135,1751335832926,-462.69652937,0.0001818,2]
[368734136,1751335832936,-465.75247996,0.0001818,2]
[368734138,1751335832946,-460.0,0.0001818,2]
[368734140,1751335832956,-460.0,0.0001818,2]
[368734142,1751335832966,-460.0,0.0001818,2]
[368734143,1751335832976,-460.0,0.0001818,2]
[368734145,1751335832986,-600.0,0.0001818,2]
[368734147,1751335832996,-500.0,0.0001818,2]
[368734148,1751335833006,-500.0,0.0001818,2]
[368734150,1751335833016,-500.0,0.0001818,2]
[368734152,1751335833025,-500.0,0.0001818,2]
[368734153,1751335833036,-230.57595667,0.0001818,2]
[368734155,1751335833046,-495.38449093,0.0001818,2]
[368734157,1751335833056,-241.51588814,0.0001818,2]
[368734158,1751335833067,-242.15518566,0.0001818,2]
[368734160,1751335833077,-472.76441973,0.0001818,2]
[368734162,1751335833088,-589.44,0.0001818,2]
[368734163,1751335833098,-341.41612413,0.0001818,2]
[368734165,1751335833109,-460.0,0.0001818,2]
[368734167,1751335833120,-460.0,0.0001818,2]
[368734169,1751335833131,-460.0,0.0001818,2]
[368734170,1751335833142,-460.0,0.0001818,2]
[368734172,1751335833154,-460.0,0.0001818,2]
[368734174,1751335833165,-460.0,0.0001818,2]
[368734176,1751335833176,-460.0,0.0001818,2]
[368734177,1751335833186,-460.0,0.0001818,2]
[368734179,1751335833196,-460.0,0.0001818,2]
[368734181,1751335833205,-460.0,0.0001818,2]
[368734183,1751335833215,-460.0,0.0001818,2]
[368734184,1751335833225,-542.2624772,0.0001818,2]
[368734186,1751335833235,-460.0,0.0001818,2]
[368734188,1751335833246,-460.0,0.0001818,2]
[368734189,1751335833256,-460.0,0.0001818,2]
[368734191,1751335833266,-428.20762149,0.0001818,2]
[368734193,1751335833275,-460.0,0.0001818,2]
[368734195,1751335833285,-3725.26,0.0001818,2]
[368734196,1751335833295,-460.0,0.00018181,2]
[368734198,1751335833305,-460.0,0.00018181,2]
[368734200,1751335833315,-578.08066681,0.00018181,2]
[368734202,1751335833326,-460.0,0.00018181,2]
[368734203,1751335833336,-187.20797301,0.00018181,2]
[368734205,1751335833345,-460.0,0.00018181,2]
[368734207,1751335833356,-460.0,0.00018181,2]
[368734209,1751335833366,-460.0,0.00018181,2]
[368734210,1751335833375,-531.15,0.00018181,2]
[368734212,1751335833386,-460.0,0.00018181,2]
[368734214,1751335833396,-460.0,0.00018181,2]
[368734216,1751335833406,-460.0,0.00018181,2]
[368734217,1751335833416,-460.0,0.00018181,2]
[368734219,1751335833426,-460.0,0.00018181,2]
[368734221,1751335833436,-460.0,0.00018181,2]
[368734223,1751335833446,-460.0,0.00018181,2]
[368734225,1751335833455,-195.1889336,0.00018181,2]
[368734226,1751335833465,-460.0,0.00018181,2]
[368734228,1751335833475,-460.0,0.00018181,2]
[368734230,1751335833485,-2297.59,0.00018181,2]
[368734232,1751335833495,-484.03,0.00018181,2]
[368734233,1751335833504,-724.54,0.00018181,2]
[368734235,1751335833514,-460.0,0.00018181,2]
[368734237,1751335833527,-460.0,0.00018181,2]
[368734239,1751335833537,-821.77,0.00018181,2]
[368734241,1751335833547,-49208.63548229,0.00018182,2]
[368734243,1751335833561,-4467.12347965,0.00018182,2]
[368734367,1751335840181,-236.63603996,0.00018179,2]
[368734372,1751335840223,-250.6696476,0.00018179,2]
[368734387,1751335840358,-65.84431244,0.00018179,2]
[368734389,1751335840368,-372.07568756,0.0001818,2]
[368734402,1751335840481,-88.79335989,0.0001818,2]
[368734404,1751335840490,-460.0,0.0001818,2]
[368734406,1751335840499,-155.09,0.0001818,2]
[368734408,1751335840509,-64642.26101597,0.00018182,2]
[368734409,1751335840519,-160.0,0.00018278,2]
[368734410,1751335840532,-460.0,0.0001828,2]
[368734411,1751335840542,-460.87769851,0.0001828,2]
[368734412,1751335840551,-455.59,0.0001828,2]
[368734413,1751335840561,-460.0,0.0001828,2]
[368734414,1751335840573,-460.0,0.0001828,2]
[368734415,1751335840584,-464.72845553,0.0001828,2]
[368734416,1751335840593,-460.0,0.0001828,2]
[368734417,1751335840603,-460.0,0.0001828,2]
[368734418,1751335840614,-462.46494138,0.0001828,2]
[368734419,1751335840625,-540.42,0.0001828,2]
[368734420,1751335840635,-460.0,0.0001828,2]
[368734422,1751335840644,-500.0,0.0001828,2]
[368734423,1751335840654,-460.0,0.0001828,2]
[368734425,1751335840664,-460.0,0.0001828,2]
[368734427,1751335840674,-479.54,0.0001828,2]
[368734429,1751335840684,-494.59,0.0001828,2]
[368734431,1751335840694,-412.30571877,0.0001828,2]
[368734433,1751335840704,-460.0,0.0001828,2]
[368734435,1751335840713,-460.0,0.0001828,2]
[368734437,1751335840723,-460.0,0.0001828,2]
[368734439,1751335840733,-460.0,0.0001828,2]
[368734441,1751335840743,-500.83,0.0001828,2]
[368734443,1751335840753,-550.21807375,0.00018281,2]
[368734445,1751335840762,-460.0,0.00018281,2]
[368734447,1751335840773,-460.0,0.00018281,2]
[368734449,1751335840783,-460.0,0.00018281,2]
[368734452,1751335840795,-460.0,0.00018281,2]
[368734454,1751335840805,-460.0,0.00018281,2]
[368734456,1751335840817,-290.20420786,0.00018281,2]
[368734458,1751335840827,-460.0,0.00018281,2]
[368734460,1751335840837,-460.0,0.00018281,2]
[368734462,1751335840846,-460.0,0.00018281,2]
[368734464,1751335840856,-460.0,0.00018281,2]
[368734466,1751335840866,-460.0,0.00018281,2]
[368734468,1751335840876,-438.220173,0.00018281,2]
[368734470,1751335840885,-460.0,0.00018281,2]
[368734472,1751335840895,-464.54249873,0.00018281,2]
[368734474,1751335840906,-169.34510604,0.00018281,2]
[368734476,1751335840917,-405.84555734,0.00018281,2]
[368734478,1751335840927,-460.0,0.00018281,2]
[368734479,1751335840936,-460.0,0.00018281,2]
[368734481,1751335840946,-868.25,0.00018281,2]
[368734483,1751335840956,-460.0,0.00018281,2]
[368734485,1751335840968,-472.08807834,0.00018283,2]
[368734487,1751335840980,-460.0,0.00018283,2]
[368734489,1751335840989,-463.93011736,0.00018283,2]
[368734491,1751335840999,-460.0,0.00018283,2]
[368734493,1751335841009,-460.0,0.00018283,2]
[368734495,1751335841018,-465.96303163,0.00018283,2]
[368734497,1751335841028,-460.0,0.00018373,2]
[368734499,1751335841037,-460.0,0.00018373,2]
[368734501,1751335841047,-460.0,0.00018373,2]
[368734503,1751335841056,-529.86103693,0.00018373,2]
[368734505,1751335841066,-460.0,0.00018373,2]
[368734507,1751335841076,-460.0,0.00018373,2]
[368734509,1751335841086,-460.0,0.00018373,2]
[368734511,1751335841095,-460.0,0.00018383,2]
[368734513,1751335841105,-460.0,0.00018383,2]
[368734515,1751335841115,-460.0,0.00018383,2]
[368734517,1751335841125,-460.0,0.00018383,2]
[368734519,1751335841135,-460.0,0.00018453,2]
[368734521,1751335841144,-439.33495817,0.00018453,2]
[368734523,1751335841154,-494.28,0.00018453,2]
[368734525,1751335841163,-460.0,0.00018453,2]
[368734527,1751335841173,-1386.43,0.00018453,2]